fUSD/lending_fUSD_20240412
["ID","MTS","AMOUNT","RATE_DAILY","PERIOD"]
[322314601,1712947844180,-194.808485,0.00032877,7]
[322314603,1712947844190,-194.808485,0.00032877,7]
[322314605,1712947844199,-194.808485,0.00032877,7]
[322314607,1712947844209,-151.0,0.00032877,7]
[322314609,1712947844219,-151.0,0.00032877,7]
[322314611,1712947844228,-264.8269,0.00032877,7]
[322314613,1712947844238,-151.0,0.00032877,7]
[322314615,1712947844247,-227.816751,0.00032877,7]
[322314617,1712947844258,-180.67,0.00032877,2]
[322314619,1712947844267,-151.0,0.00032877,7]
[322314622,1712947844277,-151.0,0.00032877,7]
[322314624,1712947844288,-151.0,0.00032877,7]
[322314626,1712947844298,-151.0,0.00032877,7]
[322314628,1712947844307,-151.0,0.00032877,7]
[322314631,1712947844316,-151.0,0.00032877,7]
[322314635,1712947844326,-151.0,0.00032877,7]
[322314638,1712947844338,-151.0,0.00032877,7]
[322314642,1712947844347,-151.0,0.00032877,7]
[322314646,1712947844357,-151.0,0.00032877,7]
[322314649,1712947844367,-151.0,0.00032877,7]
[322314652,1712947844378,-151.0,0.00032877,7]
[322314655,1712947844388,-151.0,0.00032877,7]
[322314658,1712947844397,-200.619876,0.00032877,7]
[322314660,1712947844407,-151.0,0.00032877,7]
[322314663,1712947844417,-7524.71943962,0.000329,4]
[322314666,1712947844427,-61853.94580765,0.00032901,2]
[322314669,1712947844436,-151.0,0.00032901,7]
[322314673,1712947844449,-151.0,0.00032901,7]
[322314676,1712947844459,-151.0,0.00032901,7]
[322314680,1712947844469,-151.0,0.00032901,7]
[322314683,1712947844479,-164.740397,0.00032901,7]
[322314686,1712947844488,-164.740397,0.00032901,7]
[322314689,1712947844498,-156.18255938,0.00032983,7]
[322314692,1712947844508,-550.0,0.00033,3]
[322314695,1712947844518,-206.0,0.00033,2]
[322314706,1712947844528,-308.22,0.00033165,2]
[322314714,1712947844540,-1500.0,0.000333,18]
[322314723,1712947844550,-150.0,0.00033347,2]
[322314733,1712947844560,-422.92243886,0.00033362,2]
[322314743,1712947844570,-150.0,0.00033415,2]
[322314753,1712947844580,-896.92,0.00033415,2]
[322314761,1712947844590,-283.67,0.00033415,2]
[322314769,1712947844601,-4813.496,0.00033415,2]
[322314778,1712947844612,-2484.867,0.00033415,2]
[322314787,1712947844622,-2129.91,0.00033415,2]
[322314794,1712947844633,-37595.0,0.00033415,2]
[322314801,1712947844643,-1158.923,0.00033415,2]
[322314807,1712947844653,-223.772,0.00033415,2]
[322314815,1712947844663,-151.0,0.00033415,7]
[322314824,1712947844674,-151.0,0.00033415,7]
[322314832,1712947844685,-151.0,0.00033415,7]
[322314840,1712947844695,-194.808485,0.00033415,7]
[322314849,1712947844706,-194.808485,0.00033415,7]
[322314857,1712947844718,-151.0,0.00033415,7]
[322314863,1712947844728,-151.0,0.00033415,7]
[322314870,1712947844739,-151.0,0.00033415,7]
[322314878,1712947844751,-258.15772,0.00033415,7]
[322314884,1712947844761,-156.18255938,0.00033424,7]
[322314895,1712947844774,-160.33,0.000335,2]
[322314906,1712947844787,-894.79,0.00033654,2]
[322314915,1712947844797,-152.69,0.000337,2]
[322314925,1712947844808,-152.69,0.000337,2]
[322314935,1712947844820,-150.0,0.00033755,2]
[322314943,1712947844831,-1500.0,0.000338,18]
[322314951,1712947844841,-153.9583776,0.0003394,7]
[322314960,1712947844850,-150.0,0.00034038,2]
[322314969,1712947844864,-1000.3,0.000341,2]
[322314977,1712947844874,-334.74,0.000341,2]
[322314986,1712947844884,-547.0,0.00034109,2]
[322314995,1712947844893,-501.0,0.00034109,2]
[322315003,1712947844904,-209.97,0.000342,2]
[322315010,1712947844914,-235.70307694,0.00034204,7]
[322315016,1712947844925,-150.0,0.00034217,2]
[322315022,1712947844937,-152.13,0.00034247,2]
[322315028,1712947844948,-1000.0,0.00034247,2]
[322315033,1712947844959,-1500.0,0.000343,18]
[322315038,1712947844969,-178.51564839,0.00034378,6]
[322315042,1712947844979,-150.0,0.00034395,2]
[322315046,1712947844991,-223.30239968,0.00034458,6]
[322315051,1712947845001,-150.0,0.00034478,120]
[322315055,1712947845013,-810.73837964,0.00034497,2]
[322315059,1712947845027,-150.0,0.00034531,2]
[322315063,1712947845044,-150.0,0.00034548,10]
[322315067,1712947845055,-10000.0,0.00034558,2]
[322315071,1712947845067,-150.0,0.00034559,2]
[322315075,1712947845078,-150.0,0.00034635,2]
[322315078,1712947845089,-150.0,0.00034671,2]
[322315082,1712947845100,-150.0,0.00034719,2]
[322315084,1712947845110,-150.0,0.00034733,2]
[322315089,1712947845120,-150.0,0.0003474,2]
[322315093,1712947845130,-150.0,0.00034748,2]
[322315095,1712947845140,-150.0,0.00034761,2]
[322315099,1712947845149,-300.0,0.00034778,2]
[322315103,1712947845159,-4003.18671257,0.000348,14]
[322315108,1712947845169,-151.0,0.000348,7]
[322315113,1712947845179,-151.0,0.000348,7]
[322315117,1712947845189,-151.0,0.000348,7]
[322315121,1712947845200,-570.52799,0.000348,7]
[322315125,1712947845210,-151.0,0.000348,7]
[322315129,1712947845220,-151.0,0.000348,7]
[322315133,1712947845229,-570.52799,0.000348,7]
[322315137,1712947845241,-1500.0,0.000348,18]
[322315140,1712947845252,-150.0,0.00034849,2]
[322315144,1712947845262,-150.0,0.00034849,2]
[322315149,1712947845272,-150.0,0.00034852,2]
[322315153,1712947845282,-300.0,0.00034859,2]
[322315157,1712947845297,-561.39724138,0.00034861,2]
[322315161,1712947845310,-7524.71943962,0.000349,7]
[322315165,1712947845319,-150.0,0.00034933,2]
[322315169,1712947845329,-150.0,0.00034975,2]
[322315172,1712947845339,-600.0,0.00035,3]
[322315175,1712947845348,-599.99999907,0.00035,36]
[322315178,1712947845358,-150.0,0.00035024,2]
[322315183,1712947845368,-150.0,0.00035028,2]
[322315187,1712947845378,-150.0,0.00035041,2]
[322315191,1712947845388,-150.0,0.00035047,2]
[322315195,1712947845397,-150.0,0.00035051,2]
[322315199,1712947845408,-150.0,0.00035056,2]
[322315202,1712947845418,-1420.74457864,0.00035111,7]
[322315206,1712947845427,-150.0,0.00035126,2]
[322315211,1712947845437,-150.0,0.00035149,2]
[322315215,1712947845448,-150.0,0.0003521,2]
[322315219,1712947845458,-150.0,0.00035239,2]
[322315223,1712947845467,-150.0,0.00035241,2]
[322315226,1712947845477,-150.0,0.0003527,2]
[322315230,1712947845486,-458.14,0.00035288,15]
[322315233,1712947845497,-1500.0,0.000353,18]
[322315236,1712947845507,-275.5,0.000353,2]
[322315239,1712947845517,-600.0,0.000353,120]
[322315242,1712947845529,-163.29635154,0.0003533,7]
[322315245,1712947845542,-547.0,0.00035342,2]
[322315248,1712947845552,-501.0,0.00035342,2]
[322315251,1712947845561,-9580.35456223,0.00035367,2]
[322315254,1712947845571,-157.54479095,0.00035368,7]
[322315256,1712947845580,-61853.94580765,0.00035401,2]
[322315259,1712947845590,-174.76099081,0.00035409,2]
[322315262,1712947845599,-151.0,0.00035436,7]
[322315266,1712947845609,-151.0,0.00035436,7]
[322315269,1712947845619,-153.805087,0.00035436,7]
[322315272,1712947845629,-151.0,0.00035436,7]
[322315276,1712947845639,-151.0,0.00035436,7]
[322315278,1712947845649,-1829.0,0.00035458,4]
[322315282,1712947845658,-150.0,0.00035458,2]
[322315286,1712947845668,-1000.3,0.0003547,2]
[322315290,1712947845677,-156.50367235,0.00035536,7]
[322315294,1712947845687,-153.97663511,0.00035567,2]
[322315298,1712947845697,-167.81325132,0.00035778,7]
[322315302,1712947845707,-156.18255939,0.00035809,7]
[322315306,1712947845717,-157.385348,0.00035814,7]
[322315310,1712947845727,-160.33,0.000359,2]
[322315314,1712947845736,-894.79,0.00035917,2]
[322315318,1712947845746,-157.71,0.00036164,2]
[322315322,1712947845756,-153.20889161,0.00036203,7]
[322315326,1712947845765,-3123.657,0.00036415,2]
[322315330,1712947845774,-1053.0,0.00036415,2]
[322315334,1712947845784,-150.0,0.00036415,2]
[322315338,1712947845796,-209.97,0.000365,2]
[322315341,1712947845806,-13887.0,0.000365,2]
[322315344,1712947845816,-156.70883968,0.00036508,7]
[322315348,1712947845826,-547.0,0.00036575,7]
[322315352,1712947845837,-501.0,0.00036575,7]
[322315356,1712947845847,-150.0,0.00036667,120]
[322315360,1712947845857,-1023.62,0.0003684,2]
[322315364,1712947845871,-3000.0,0.00036898,2]
[322315368,1712947845880,-7524.71943962,0.000369,9]
[322315373,1712947845889,-395.54015689,0.000369,2]
[322315375,1712947845899,-395.54015689,0.000369,2]
[322315379,1712947845908,-395.54015689,0.000369,2]
[322315383,1712947845918,-395.54015689,0.000369,2]
[322315387,1712947845928,-395.54015689,0.000369,2]
[322315390,1712947845938,-395.54015689,0.000369,2]
[322315392,1712947845948,-395.54015689,0.000369,2]
[322315394,1712947845958,-395.54015689,0.000369,2]
[322315396,1712947845967,-167.81325132,0.00036947,7]
[322315397,1712947845976,-150.0,0.00036973,120]
[322315399,1712947845985,-153.9583776,0.00036995,7]
[322315401,1712947845995,-650.0,0.00037,3]
[322315403,1712947846004,-161.80937703,0.00037179,7]
[322315406,1712947846014,-152.69,0.000374,3]
[322315408,1712947846023,-152.69,0.000374,3]
[322315411,1712947846033,-164.0,0.00037434,2]
[322315414,1712947846045,-151.0,0.00037508,2]
[322315417,1712947846056,-547.0,0.00037808,7]
[322315419,1712947846065,-501.0,0.00037808,7]
[322315421,1712947846074,-157.54479095,0.0003781,7]
[322315423,1712947846083,-9580.35456223,0.00037878,2]
[322315425,1712947846093,-61853.94580765,0.000379,2]
[322315427,1712947846102,-151.0,0.00037924,7]
[322315429,1712947846112,-151.0,0.00037924,7]
[322315431,1712947846122,-151.0,0.00037924,7]
[322315433,1712947846132,-151.0,0.00037924,7]
[322315435,1712947846141,-152.781991,0.00037924,7]
[322315437,1712947846151,-152.0,0.0003793,28]
[322315439,1712947846162,-458.14,0.00038027,15]
[322315441,1712947846171,-1420.74457864,0.00038053,8]
[322315443,1712947846181,-894.79,0.00038181,2]
[322315445,1712947846190,-158.47,0.00038356,2]
[322315447,1712947846200,-151.73788292,0.00038613,7]
[322315449,1712947846210,-235.70307694,0.00038655,7]
[322315451,1712947846221,-152.0,0.00038821,3]
[322315454,1712947846231,-7524.71943962,0.000389,12]
[322315456,1712947846241,-308.22,0.00038933,2]
[322315458,1712947846252,-700.0,0.00039,3]
[322315460,1712947846262,-548.0,0.00039041,7]
[322315461,1712947846271,-501.0,0.00039041,7]
[322315463,1712947846281,-162.29138489,0.00039182,7]
[322315465,1712947846294,-209.97,0.000392,7]
[322315468,1712947846304,-153.97663511,0.00039233,3]
[322315470,1712947846314,-160.33,0.000393,7]
[322315472,1712947846323,-151.0,0.00039457,7]
[322315474,1712947846332,-151.0,0.00039457,14]
[322315475,1712947846341,-173.377447,0.00039457,14]
[322315478,1712947846351,-151.0,0.00039457,14]
[322315479,1712947846361,-151.0,0.00039457,14]
[322315481,1712947846371,-182.030433,0.00039457,14]
[322315484,1712947846381,-154.242716,0.00039457,14]
[322315486,1712947846391,-182.030433,0.00039457,14]
[322315488,1712947846400,-771.600002,0.000395,30]
[322315489,1712947846409,-163.29635154,0.00039602,7]
[322315492,1712947846419,-157.54479095,0.00039653,7]
[322315493,1712947846429,-150.0,0.00039784,120]
[322315495,1712947846438,-959.05932493,0.0004,30]
[322315497,1712947846448,-14766.31507904,0.0004,2]
[322315499,1712947846457,-3146.06397239,0.0004,2]
[322315502,1712947846467,-288.33248047,0.0004,2]
[322315504,1712947846477,-2851.76652198,0.0004,5]
[322315506,1712947846487,-2210.000001,0.0004,4]
[322315508,1712947846496,-455.31459978,0.0004,60]
[322315510,1712947846506,-6045.52254001,0.0004,4]
[322315512,1712947846516,-151.73788292,0.0004002,30]
[322315514,1712947846527,-235.70307694,0.0004011,30]
[322315516,1712947846539,-228.585644,0.00040204,2]
[322315518,1712947846548,-156.15189,0.00040204,2]
[322315520,1712947846557,-799.497678,0.00040204,2]
[322315522,1712947846566,-161.997483,0.00040204,2]
[322315524,1712947846575,-2190.711354,0.00040204,2]
[322315526,1712947846584,-154.781343,0.00040204,2]
[322315528,1712947846594,-175.926021,0.00040204,2]
[322315530,1712947846603,-257.816897,0.00040204,2]
[322315532,1712947846613,-209.980311,0.00040204,2]
[322315534,1712947846622,-153.9583776,0.00040209,30]
[322315536,1712947846632,-151.73788292,0.00040265,30]
[322315538,1712947846642,-501.0,0.00040274,7]
[322315540,1712947846651,-157.54479095,0.00040312,30]
[322315542,1712947846661,-235.70307694,0.00040349,30]
[322315544,1712947846671,-157.54479095,0.00040387,30]
[322315546,1712947846680,-9580.35456223,0.00040389,2]
[322315548,1712947846690,-235.70307694,0.00040398,30]
[322315550,1712947846699,-151.0,0.000404,14]
[322315552,1712947846708,-151.0,0.000404,14]
[322315554,1712947846717,-151.0,0.000404,14]
[322315556,1712947846727,-61853.94580765,0.000404,2]
[322315558,1712947846737,-151.0,0.00040412,14]
[322315560,1712947846747,-151.0,0.00040412,14]
[322315562,1712947846757,-235.70307694,0.00040439,30]
[322315564,1712947846766,-894.79,0.00040445,2]
[322315579,1712947846904,-235.70307694,0.00040452,30]
[322315581,1712947846913,-235.70307694,0.000405,30]
[322315583,1712947846923,-157.71,0.00040685,2]
[322315585,1712947846933,-235.70307694,0.00040686,30]
[322315587,1712947846944,-799.497678,0.00040707,2]
[322315589,1712947846954,-2190.711354,0.00040707,2]
[322315591,1712947846964,-458.14,0.00040767,15]
[322315593,1712947846973,-160.62694543,0.00040793,30]
[322315595,1712947846982,-163.29635154,0.00040824,30]
[322315597,1712947846992,-156.15189,0.00040874,2]
[322315599,1712947847001,-150.0,0.00040893,120]
[322315601,1712947847010,-7524.71943962,0.000409,15]
[322315603,1712947847019,-1420.74457864,0.00040995,10]
[322315605,1712947847030,-37441.01505618,0.00041,2]
[322315607,1712947847043,-750.0,0.00041,3]
[322315610,1712947847052,-151.0,0.00041,14]
[322315612,1712947847062,-151.0,0.00041,14]
[322315613,1712947847072,-182.252892,0.00041,14]
[322315615,1712947847084,-151.0,0.00041,14]
[322315617,1712947847094,-570.52799,0.00041,14]
[322315619,1712947847103,-151.0,0.00041,14]
[322315622,1712947847114,-151.0,0.00041,14]
[322315624,1712947847124,-570.52799,0.00041,14]
[322315626,1712947847133,-151.0,0.00041,14]
[322315628,1712947847143,-151.0,0.00041,14]
[322315630,1712947847153,-194.808485,0.00041,14]
[322315632,1712947847163,-194.808485,0.00041,14]
[322315634,1712947847172,-2000.0,0.00041095,120]
[322315636,1712947847182,-2000.0,0.00041095,120]
[322315638,1712947847191,-2000.0,0.00041095,120]
[322315640,1712947847200,-2000.0,0.00041095,120]
[322315642,1712947847210,-2000.0,0.00041095,120]
[322315644,1712947847219,-2000.0,0.00041095,120]
[322315646,1712947847229,-768.89026999,0.00041095,120]
[322315648,1712947847240,-157.0,0.00041096,2]
[322315650,1712947847250,-150.55,0.00041096,2]
[322315652,1712947847260,-152.13,0.00041096,2]
[322315658,1712947847271,-155.40987385,0.00041185,30]
[322315662,1712947847281,-152.69,0.000412,4]
[322315664,1712947847293,-152.69,0.000412,4]
[322315668,1712947847303,-799.497678,0.00041209,30]
[322315673,1712947847313,-2190.711354,0.00041209,30]
[322315677,1712947847323,-209.97,0.000413,7]
[322315682,1712947847333,-153.68884458,0.00041353,30]
[322315685,1712947847343,-163.29635154,0.00041481,30]
[322315690,1712947847352,-501.0,0.00041507,7]
[322315693,1712947847362,-156.15189,0.00041544,30]
[322315697,1712947847371,-150.0,0.00041587,120]
[322315700,1712947847381,-150.91,0.00041598,2]
[322315705,1712947847390,-160.33,0.000416,7]
[322315710,1712947847399,-188.40125546,0.00041644,30]
[322315715,1712947847409,-151.73788292,0.00041678,30]
[322315719,1712947847418,-799.497678,0.00041712,30]
[322315723,1712947847428,-2190.711354,0.00041712,30]
[322315731,1712947847438,-216.129351,0.00041712,7]
[322315735,1712947847448,-151.0,0.00041712,14]
[322315738,1712947847458,-151.0,0.00041712,14]
[322315743,1712947847467,-216.129351,0.00041712,7]
[322315744,1712947847476,-151.0,0.00041712,14]
[322315750,1712947847488,-613.416944,0.00041712,14]
[322315757,1712947847498,-613.416944,0.00041712,14]
[322315764,1712947847509,-235.70307694,0.0004195,30]
[322315771,1712947847518,-150.0,0.00042,30]
[322315778,1712947847528,-27231.38528525,0.00042,120]
[322315874,1712947847752,-6612.25158562,0.00042,120]
[322315877,1712947847761,-235.70307694,0.00042059,30]
[322315880,1712947847771,-235.70307694,0.00042077,30]
[322315884,1712947847781,-656.8422605,0.00042214,30]
[322315910,1712947847872,-142.6554175,0.00042214,30]
[322315913,1712947847882,-2190.711354,0.00042214,30]
[322315916,1712947847891,-156.15189,0.00042214,30]
[322315919,1712947847901,-161.997483,0.00042214,30]
[322315922,1712947847915,-175.926021,0.00042214,30]
[322315925,1712947847924,-209.980311,0.00042214,30]
[322315928,1712947847933,-695.42,0.0004242,2]
[322315931,1712947847944,-300.0,0.0004242,2]
[322315935,1712947847954,-1036.2,0.0004242,2]
[322315939,1712947847964,-161.51,0.0004242,2]
[322315943,1712947847974,-416.02,0.0004242,2]
[322315946,1712947847983,-371.66,0.0004242,2]
[322315949,1712947847993,-246.96,0.0004242,2]
[322315951,1712947848003,-1756.46,0.0004242,2]
[322315955,1712947848014,-818.18,0.0004242,2]
[322315958,1712947848024,-150.0,0.0004242,2]
[322315961,1712947848034,-310.1675235,0.0004242,2]
[322315972,1712947848252,-107.9924765,0.0004242,2]
[322315973,1712947848262,-520.86,0.0004242,2]
[322315974,1712947848271,-162.36,0.0004242,2]
[322315975,1712947848286,-150.0,0.0004242,2]
[322315976,1712947848302,-349.62,0.0004242,2]
[322315977,1712947848313,-150.0,0.0004242,2]
[322315978,1712947848323,-418.16,0.0004242,2]
[322315980,1712947848333,-520.86,0.0004242,2]
[322315982,1712947848342,-162.36,0.0004242,2]
[322315984,1712947848353,-150.0,0.0004242,2]
[322315986,1712947848362,-907.52,0.0004242,2]
[322315988,1712947848371,-349.62,0.0004242,2]
[322315990,1712947848381,-418.16,0.0004242,2]
[322315992,1712947848390,-409.62,0.0004242,2]
[322315994,1712947848399,-520.86,0.0004242,2]
[322315996,1712947848408,-150.0,0.0004242,2]
[322315998,1712947848418,-150.0,0.0004242,2]
[322316000,1712947848427,-907.52,0.0004242,2]
[322316002,1712947848437,-349.62,0.0004242,2]
[322316004,1712947848446,-907.52,0.0004242,2]
[322316006,1712947848455,-349.62,0.0004242,2]
[322316008,1712947848465,-150.0,0.0004242,2]
[322316010,1712947848474,-520.86,0.0004242,2]
[322316012,1712947848484,-349.62,0.0004242,2]
[322316014,1712947848493,-150.0,0.0004242,2]
[322316016,1712947848502,-520.86,0.0004242,2]
[322316018,1712947848512,-150.0,0.0004242,2]
[322316019,1712947848522,-150.0,0.0004242,2]
[322316021,1712947848532,-349.62,0.0004242,2]
[322316023,1712947848545,-520.86,0.0004242,2]
[322316025,1712947848555,-150.0,0.0004242,2]
[322316027,1712947848564,-349.62,0.0004242,2]
[322316029,1712947848573,-520.86,0.0004242,2]
[322316031,1712947848583,-150.0,0.0004242,2]
[322316033,1712947848593,-349.62,0.0004242,2]
[322316035,1712947848602,-520.86,0.0004242,2]
[322316037,1712947848612,-520.86,0.0004242,2]
[322316039,1712947848621,-349.62,0.0004242,2]
[322316041,1712947848631,-150.0,0.0004242,2]
[322316043,1712947848640,-520.86,0.0004242,2]
[322316045,1712947848650,-349.62,0.0004242,2]
[322316047,1712947848659,-520.86,0.0004242,2]
[322316049,1712947848668,-150.0,0.0004242,2]
[322316051,1712947848677,-349.62,0.0004242,2]
[322316053,1712947848687,-520.86,0.0004242,2]
[322316055,1712947848696,-349.62,0.0004242,2]
[322316057,1712947848706,-520.86,0.0004242,2]
[322316059,1712947848715,-349.62,0.0004242,2]
[322316061,1712947848725,-520.86,0.0004242,2]
[322316063,1712947848734,-349.62,0.0004242,2]
[322316065,1712947848743,-520.86,0.0004242,2]
[322316067,1712947848753,-349.62,0.0004242,2]
[322316069,1712947848762,-520.86,0.0004242,2]
[322316071,1712947848771,-349.62,0.0004242,2]
[322316073,1712947848780,-520.86,0.0004242,2]
[322316075,1712947848793,-520.86,0.0004242,2]
[322316077,1712947848802,-349.62,0.0004242,2]
[322316079,1712947848811,-520.86,0.0004242,2]
[322316081,1712947848828,-349.62,0.0004242,2]
[322316083,1712947848837,-520.86,0.0004242,2]
[322316085,1712947848847,-349.62,0.0004242,2]
[322316087,1712947848856,-349.62,0.0004242,2]
[322316089,1712947848867,-520.86,0.0004242,2]
[322316091,1712947848876,-349.62,0.0004242,2]
[322316093,1712947848886,-520.86,0.0004242,2]
[322316095,1712947848895,-520.86,0.0004242,2]
[322316097,1712947848904,-349.62,0.0004242,2]
[322316099,1712947848913,-520.86,0.0004242,2]
[322316101,1712947848923,-349.62,0.0004242,2]
[322316103,1712947848932,-520.86,0.0004242,2]
[322316105,1712947848942,-349.62,0.0004242,2]
[322316107,1712947848951,-1189.18,0.0004242,2]
[322316109,1712947848961,-349.62,0.0004242,2]
[322316111,1712947848970,-349.62,0.0004242,2]
[322316113,1712947848979,-349.62,0.0004242,2]
[322316115,1712947848989,-349.62,0.0004242,2]
[322316117,1712947848998,-349.62,0.0004242,2]
[322316119,1712947849008,-349.62,0.0004242,2]
[322316121,1712947849017,-383.14,0.0004242,2]
[322316124,1712947849027,-349.62,0.0004242,2]
[322316127,1712947849041,-349.62,0.0004242,2]
[322316129,1712947849050,-349.62,0.0004242,2]
[322316131,1712947849059,-150.0,0.0004242,2]
[322316133,1712947849068,-349.62,0.0004242,2]
[322316135,1712947849077,-349.62,0.0004242,2]
[322316137,1712947849086,-150.0,0.0004242,2]
[322316139,1712947849095,-907.52,0.0004242,2]
[322316141,1712947849104,-150.0,0.0004242,2]
[322316143,1712947849114,-159.01,0.0004242,2]
[322316145,1712947849122,-150.0,0.0004242,2]
[322316146,1712947849132,-907.52,0.0004242,2]
[322316148,1712947849141,-412.01,0.0004242,2]
[322316150,1712947849150,-150.0,0.0004242,2]
[322316152,1712947849159,-150.0,0.0004242,2]
[322316154,1712947849168,-150.0,0.0004242,2]
[322316157,1712947849179,-150.0,0.0004242,2]
[322316158,1712947849188,-907.52,0.0004242,2]
[322316160,1712947849197,-150.0,0.0004242,2]
[322316162,1712947849205,-150.0,0.0004242,2]
[322316164,1712947849214,-412.01,0.0004242,2]
[322316166,1712947849224,-907.52,0.0004242,2]
[322316168,1712947849233,-907.52,0.0004242,2]
[322316170,1712947849242,-150.0,0.0004242,2]
[322316172,1712947849251,-1063.13,0.0004242,2]
[322316174,1712947849260,-150.0,0.0004242,2]
[322316176,1712947849269,-150.0,0.0004242,2]
[322316178,1712947849278,-150.0,0.0004242,2]
[322316186,1712947849415,-150.0,0.0004242,2]
[322316188,1712947849425,-151.0,0.00042452,14]
[322316190,1712947849435,-151.0,0.00042452,14]
[322316192,1712947849444,-151.0,0.00042452,14]
[322316194,1712947849454,-151.0,0.00042452,14]
[322316196,1712947849463,-164.740397,0.00042452,14]
[322316198,1712947849473,-164.740397,0.00042452,14]
[322316200,1712947849483,-403.56,0.00042452,2]
[322316202,1712947849495,-235.65,0.00042452,2]
[322316204,1712947849504,-150.0,0.00042452,2]
[322316206,1712947849516,-150.0,0.00042452,2]
[322316209,1712947849528,-150.0,0.00042452,2]
[322316211,1712947849540,-321.68893254,0.00042499,60]
[322316213,1712947849549,-200.57607601,0.00042499,60]
[322316215,1712947849559,-300.0,0.00042533,2]
[322316217,1712947849567,-266.35,0.00042533,2]
[322316219,1712947849577,-160.09977717,0.00042583,30]
[322316221,1712947849587,-235.70307694,0.00042589,30]
[322316223,1712947849597,-167.81325132,0.00042609,30]
[322316225,1712947849606,-1000.0,0.00042646,30]
[322316227,1712947849615,-417.390342,0.00042646,20]
[322316229,1712947849627,-157.385348,0.00042671,30]
[322316231,1712947849635,-152.0,0.0004269,4]
[322316233,1712947849645,-200.0,0.000427,15]
[322316235,1712947849654,-894.79,0.00042709,2]
[322316237,1712947849665,-501.0,0.00042739,7]
[322316239,1712947849674,-151.73788292,0.00042772,30]
[322316241,1712947849684,-153.68884458,0.00042783,30]
[322316243,1712947849693,-150.0,0.00042799,30]
[322316245,1712947849702,-150.0,0.00042799,30]
[322316247,1712947849712,-150.0,0.00042799,30]
[322316249,1712947849722,-150.0,0.00042799,30]
[322316251,1712947849731,-150.0,0.00042799,30]
[322316253,1712947849740,-150.0,0.00042799,30]
[322316255,1712947849750,-150.0,0.00042799,30]
[322316257,1712947849759,-150.0,0.00042799,30]
[322316259,1712947849769,-150.0,0.00042799,30]
[322316261,1712947849778,-150.0,0.00042799,30]
[322316263,1712947849790,-401159.03589205,0.000428,5]
[322316265,1712947849799,-151.0,0.000428,14]
[322316267,1712947849808,-500.0,0.000428,14]
[322316269,1712947849821,-500.0,0.000428,14]
[322316271,1712947849830,-253.88045,0.000428,14]
[322316273,1712947849840,-253.88045,0.000428,14]
[322316275,1712947849850,-179.281061,0.000428,14]
[322316277,1712947849861,-153.934131,0.000428,14]
[322316279,1712947849871,-167.981359,0.000428,14]
[322316281,1712947849881,-151.0,0.000428,14]
[322316283,1712947849891,-151.0,0.000428,14]
[322316285,1712947849902,-151.0,0.000428,14]
[322316287,1712947849911,-160.252547,0.000428,14]
[322316290,1712947849922,-151.0,0.000428,14]